[Event "FIDE Grand Swiss 2023"]
[Site "Villa Marina, Douglas, Isle of Man"]
[Date "2023.10.27"]
[Round "3.28"]
[White "Durarbayli, Vasif"]
[Black "Nihal, Sarin"]
[Result "1/2-1/2"]
[WhiteElo "2625"]
[BlackElo "2694"]
[EventDate "2023.10.25"]
[ECO "C67"]
[PlyCount "60"]
[BlackFideId "25092340"]
[TimeControl "40/100 + 20/50 + 15 + 30s/move"]
[WhiteFideId "13402935"]

1.e4 {[%clk 01:40:55] [%emt 00:00:04]} 1...e5 {[%clk 01:40:50] [%emt 00:00:10]} 
2.Nf3 {[%clk 01:41:13] [%emt 00:00:12]} 2...Nc6 {[%clk 01:41:13] [%emt
00:00:07]} 3.Bb5 {[%clk 01:41:37] [%emt 00:00:06]} 3...Nf6 {[%clk 01:41:37]
[%emt 00:00:06]} 4.O-O {[%clk 01:41:11] [%emt 00:00:56]} 4...Nxe4 {[%clk
01:41:57] [%emt 00:00:10]} 5.Re1 {[%clk 01:40:58] [%emt 00:00:43]} 5...Nd6 
{[%clk 01:42:18] [%emt 00:00:08]} 6.Nxe5 {[%clk 01:41:19] [%emt 00:00:09]} 
6...Be7 {[%clk 01:42:43] [%emt 00:00:05]} 7.Bf1 {[%clk 01:41:40] [%emt
00:00:10]} 7...Nxe5 {[%clk 01:43:03] [%emt 00:00:10]} 8.Rxe5 {[%clk 01:41:59]
[%emt 00:00:11]} 8...O-O {[%clk 01:43:29] [%emt 00:00:03]} 9.Nc3 {[%clk
01:41:47] [%emt 00:00:43]} 9...Ne8 {[%clk 01:30:41] [%emt 00:13:18]} 10.Nd5 
{[%clk 01:42:00] [%emt 00:00:18]} 10...Bd6 {[%clk 01:31:04] [%emt 00:00:06]} 
11.Re1 {[%clk 01:42:15] [%emt 00:00:14]} 11...c6 {[%clk 01:31:27] [%emt
00:00:06]} 12.Ne3 {[%clk 01:42:27] [%emt 00:00:19]} 12...Be7 {[%clk 01:31:34]
[%emt 00:00:23]} 13.d4 {[%clk 01:42:24] [%emt 00:00:32]} 13...d5 {[%clk
01:30:45] [%emt 00:01:19]} 14.c4 {[%clk 01:42:43] [%emt 00:00:12]} 14...dxc4 
{[%clk 01:26:46] [%emt 00:04:28]} 15.Bxc4 {[%clk 01:37:06] [%emt 00:06:08]} 
15...Nc7 {[%clk 01:26:54] [%emt 00:00:21]} 16.d5 {[%clk 01:31:48] [%emt
00:05:49]} 16...Bb4 {[%clk 01:26:08] [%emt 00:01:16]} 17.Bd2 {[%clk 01:30:25]
[%emt 00:01:52]} 17...Bxd2 {[%clk 01:26:20] [%emt 00:00:19]} 18.Qxd2 {[%clk
01:30:49] [%emt 00:00:06]} 18...cxd5 {[%clk 01:26:46] [%emt 00:00:04]} 19.Nxd5 
{[%clk 01:28:52] [%emt 00:02:27]} 19...Be6 {[%clk 01:26:47] [%emt 00:00:28]} 
20.Rad1 {[%clk 01:29:04] [%emt 00:00:18]} 20...Nxd5 {[%clk 01:27:10] [%emt
00:00:07]} 21.Bxd5 {[%clk 01:29:31] [%emt 00:00:05]} 21...Qxd5 {[%clk 01:27:34]
[%emt 00:00:05]} 22.Qxd5 {[%clk 01:29:56] [%emt 00:00:06]} 22...Bxd5 {[%clk
01:28:00] [%emt 00:00:03]} 23.Rxd5 {[%clk 01:30:20] [%emt 00:00:06]} 23...Rfd8 
{[%clk 01:28:25] [%emt 00:00:04]} 24.Red1 {[%clk 01:30:01] [%emt 00:00:49]} 
24...Rxd5 {[%clk 01:28:50] [%emt 00:00:06]} 25.Rxd5 {[%clk 01:30:27] [%emt
00:00:05]} 25...Kf8 {[%clk 01:29:13] [%emt 00:00:06]} 26.Rd7 {[%clk 01:30:32]
[%emt 00:00:24]} 26...Re8 {[%clk 01:29:36] [%emt 00:00:07]} 27.Kf1 {[%clk
01:30:58] [%emt 00:00:04]} 27...Re7 {[%clk 01:30:03] [%emt 00:00:04]} 28.Rd8+ 
{[%clk 01:31:11] [%emt 00:00:17]} 28...Re8 {[%clk 01:30:29] [%emt 00:00:05]} 
29.Rd7 {[%clk 01:28:06] [%emt 00:03:35]} 29...Re7 {[%clk 01:30:27] [%emt
00:00:31]} 30.Rd8+ {[%clk 01:28:30] [%emt 00:00:06]} 30...Re8 {[%clk 01:30:52]
[%emt 00:00:04]} 1/2-1/2

[Event "FIDE Grand Swiss 2023"]
[Site "Villa Marina, Douglas, Isle of Man"]
[Date "2023.10.27"]
[Round "3.29"]
[White "Xiong, Jeffery"]
[Black "Yakubboev, Nodirbek"]
[Result "1/2-1/2"]
[WhiteElo "2693"]
[BlackElo "2616"]
[EventDate "2023.10.25"]
[ECO "C47"]
[PlyCount "62"]
[BlackFideId "14203987"]
[TimeControl "40/100 + 20/50 + 15 + 30s/move"]
[WhiteFideId "2047640"]

1.e4 {[%clk 01:40:58] [%emt 00:00:01]} 1...e5 {[%clk 01:39:01] [%emt 00:02:00]} 
2.Nf3 {[%clk 01:41:24] [%emt 00:00:04]} 2...Nc6 {[%clk 01:39:26] [%emt
00:00:05]} 3.Nc3 {[%clk 01:40:45] [%emt 00:01:08]} 3...Nf6 {[%clk 01:39:38]
[%emt 00:00:19]} 4.d4 {[%clk 01:39:06] [%emt 00:02:07]} 4...exd4 {[%clk
01:38:34] [%emt 00:01:35]} 5.Nxd4 {[%clk 01:39:33] [%emt 00:00:03]} 5...Bb4 
{[%clk 01:38:57] [%emt 00:00:08]} 6.Nxc6 {[%clk 01:39:53] [%emt 00:00:09]} 
6...bxc6 {[%clk 01:39:24] [%emt 00:00:04]} 7.Bd3 {[%clk 01:40:15] [%emt
00:00:08]} 7...O-O {[%clk 01:39:12] [%emt 00:00:41]} 8.O-O {[%clk 01:40:41]
[%emt 00:00:04]} 8...d5 {[%clk 01:39:36] [%emt 00:00:07]} 9.Bd2 {[%clk 01:40:27]
[%emt 00:00:39]} 9...Bxc3 {[%clk 01:23:43] [%emt 00:16:28]} 10.Bxc3 {[%clk
01:40:36] [%emt 00:00:20]} 10...Nxe4 {[%clk 01:24:10] [%emt 00:00:04]} 11.Bxe4 
{[%clk 01:40:57] [%emt 00:00:09]} 11...dxe4 {[%clk 01:24:37] [%emt 00:00:02]} 
12.Qh5 {[%clk 01:41:13] [%emt 00:00:14]} 12...Qd5 {[%clk 01:06:43] [%emt
00:18:25]} 13.Qe5 {[%clk 01:41:21] [%emt 00:00:22]} 13...Qxe5 {[%clk 00:59:47]
[%emt 00:07:26]} 14.Bxe5 {[%clk 01:41:30] [%emt 00:00:21]} 14...Bf5 {[%clk
00:48:12] [%emt 00:12:04]} 15.Rac1 {[%clk 01:14:12] [%emt 00:27:48]} 15...Rac8 
{[%clk 00:43:22] [%emt 00:05:20]} 16.Rfd1 {[%clk 01:13:28] [%emt 00:01:13]} 
16...f6 {[%clk 00:41:26] [%emt 00:02:27]} 17.Bf4 {[%clk 01:13:40] [%emt
00:00:18]} 17...Rfd8 {[%clk 00:39:56] [%emt 00:02:00]} 18.Rxd8+ {[%clk 01:07:44]
[%emt 00:06:26]} 18...Rxd8 {[%clk 00:40:24] [%emt 00:00:02]} 19.Bxc7 {[%clk
01:07:39] [%emt 00:00:35]} 19...Rd7 {[%clk 00:40:53] [%emt 00:00:02]} 20.Bf4 
{[%clk 01:07:12] [%emt 00:00:56]} 20...Bg4 {[%clk 00:29:39] [%emt 00:11:44]} 
21.Re1 {[%clk 01:01:56] [%emt 00:05:46]} 21...Bd1 {[%clk 00:28:31] [%emt
00:01:38]} 22.Rxe4 {[%clk 01:01:43] [%emt 00:00:44]} 22...Bxc2 {[%clk 00:28:59]
[%emt 00:00:02]} 23.Re1 {[%clk 01:02:04] [%emt 00:00:08]} 23...Kf7 {[%clk
00:28:51] [%emt 00:00:39]} 24.f3 {[%clk 01:02:27] [%emt 00:00:06]} 24...Rd1 
{[%clk 00:29:14] [%emt 00:00:08]} 25.Rxd1 {[%clk 01:02:25] [%emt 00:00:32]} 
25...Bxd1 {[%clk 00:29:42] [%emt 00:00:01]} 26.Kf2 {[%clk 01:02:47] [%emt
00:00:08]} 26...Ke6 {[%clk 00:29:40] [%emt 00:00:33]} 27.Ke3 {[%clk 01:03:14]
[%emt 00:00:02]} 27...Bc2 {[%clk 00:29:09] [%emt 00:01:01]} 28.Kd4 {[%clk
01:03:26] [%emt 00:00:17]} 28...g6 {[%clk 00:28:41] [%emt 00:00:59]} 29.Bd2 
{[%clk 01:02:23] [%emt 00:01:34]} 29...Bb1 {[%clk 00:28:53] [%emt 00:00:18]} 
30.a3 {[%clk 01:02:45] [%emt 00:00:07]} 30...f5 {[%clk 00:28:37] [%emt
00:00:46]} 31.Kc5 {[%clk 01:02:27] [%emt 00:00:48]} 31...Ke5 {[%clk 00:28:59]
[%emt 00:00:17]} 1/2-1/2

[Event "FIDE Grand Swiss 2023"]
[Site "Villa Marina, Douglas, Isle of Man"]
[Date "2023.10.27"]
[Round "3.30"]
[White "Mendonca, Leon Luke"]
[Black "Fedoseev, Vladimir"]
[Result "0-1"]
[WhiteElo "2622"]
[BlackElo "2691"]
[EventDate "2023.10.25"]
[ECO "E17"]
[PlyCount "96"]
[BlackFideId "24130737"]
[TimeControl "40/100 + 20/50 + 15 + 30s/move"]
[WhiteFideId "35028561"]

1.d4 {[%clk 01:40:54] [%emt 00:00:05]} 1...Nf6 {[%clk 01:40:52] [%emt 00:00:08]} 
2.c4 {[%clk 01:40:57] [%emt 00:00:27]} 2...e6 {[%clk 01:41:16] [%emt 00:00:06]} 
3.Nf3 {[%clk 01:41:02] [%emt 00:00:25]} 3...b6 {[%clk 01:41:31] [%emt 00:00:15]} 
4.g3 {[%clk 01:40:57] [%emt 00:00:35]} 4...Bb7 {[%clk 01:41:50] [%emt 00:00:12]} 
5.Bg2 {[%clk 01:41:14] [%emt 00:00:13]} 5...Be7 {[%clk 01:42:08] [%emt
00:00:12]} 6.O-O {[%clk 01:41:17] [%emt 00:00:26]} 6...O-O {[%clk 01:42:31]
[%emt 00:00:07]} 7.Re1 {[%clk 01:38:32] [%emt 00:03:16]} 7...Ne4 {[%clk
01:42:49] [%emt 00:00:12]} 8.Nfd2 {[%clk 01:33:00] [%emt 00:06:02]} 8...d5 
{[%clk 01:43:11] [%emt 00:00:08]} 9.cxd5 {[%clk 01:31:14] [%emt 00:02:16]} 
9...exd5 {[%clk 01:43:40] [%emt 00:00:01]} 10.Nxe4 {[%clk 01:28:29] [%emt
00:03:15]} 10...dxe4 {[%clk 01:44:08] [%emt 00:00:02]} 11.Nc3 {[%clk 01:28:45]
[%emt 00:00:14]} 11...f5 {[%clk 01:44:33] [%emt 00:00:05]} 12.Bf4 {[%clk
01:27:14] [%emt 00:02:00]} 12...Bd6 {[%clk 01:45:02] [%emt 00:00:02]} 13.Qb3+ 
{[%clk 01:01:55] [%emt 00:25:49]} 13...Kh8 {[%clk 01:45:17] [%emt 00:00:14]} 
14.Bxd6 {[%clk 01:01:12] [%emt 00:01:13]} 14...Qxd6 {[%clk 01:45:30] [%emt
00:00:18]} 15.Nb5 {[%clk 00:59:15] [%emt 00:02:27]} 15...Qd8 {[%clk 01:28:51]
[%emt 00:17:08]} 16.Rac1 {[%clk 00:57:38] [%emt 00:02:07]} 16...c6 {[%clk
01:25:00] [%emt 00:04:22]} 17.Na3 {[%clk 00:57:10] [%emt 00:00:58]} 17...Na6 
{[%clk 01:13:42] [%emt 00:11:48]} 18.Red1 {[%clk 00:52:48] [%emt 00:04:52]} 
18...Qe7 {[%clk 01:10:41] [%emt 00:03:30]} 19.Nc4 {[%clk 00:48:45] [%emt
00:04:35]} 19...Rad8 {[%clk 01:09:27] [%emt 00:01:43]} 20.e3 {[%clk 00:37:29]
[%emt 00:11:46]} 20...Ba8 {[%clk 00:47:00] [%emt 00:22:57]} 21.Bf1 {[%clk
00:27:29] [%emt 00:10:29]} 21...Nb4 {[%clk 00:36:28] [%emt 00:11:03]} 22.Ne5 
{[%clk 00:21:06] [%emt 00:06:53]} 22...c5 {[%clk 00:34:48] [%emt 00:02:11]} 
23.Bc4 {[%clk 00:17:43] [%emt 00:03:53]} 23...Nd5 {[%clk 00:32:33] [%emt
00:02:45]} 24.Rd2 {[%clk 00:15:58] [%emt 00:02:15]} 24...b5 {[%clk 00:24:28]
[%emt 00:08:35]} 25.Qxb5 {[%clk 00:14:07] [%emt 00:02:21]} 25...cxd4 {[%clk
00:24:51] [%emt 00:00:07]} 26.Rxd4 {[%clk 00:00:57] [%emt 00:13:41]} 26...Qxe5 
{[%clk 00:25:11] [%emt 00:00:08]} 27.Rcd1 {[%clk 00:00:47] [%emt 00:00:41]} 
27...Rb8 {[%clk 00:25:35] [%emt 00:00:06]} 28.Qa5 {[%clk 00:00:34] [%emt
00:00:44]} 28...Qc7 {[%clk 00:25:47] [%emt 00:00:17]} 29.Qxc7 {[%clk 00:00:45]
[%emt 00:00:20]} 29...Nxc7 {[%clk 00:26:10] [%emt 00:00:06]} 30.Rd7 {[%clk
00:01:14]} 30...Rbc8 {[%clk 00:24:02] [%emt 00:02:38]} 31.Re7 {[%clk 00:00:47]
[%emt 00:00:58]} 31...Bc6 {[%clk 00:22:53] [%emt 00:01:38]} 32.b3 {[%clk
00:00:39] [%emt 00:00:38]} 32...Be8 {[%clk 00:18:17] [%emt 00:05:05]} 33.Rd6 
{[%clk 00:00:32] [%emt 00:00:37]} 33...Rf6 {[%clk 00:16:12] [%emt 00:02:36]} 
34.Rxf6 {[%clk 00:00:56] [%emt 00:00:07]} 34...gxf6 {[%clk 00:16:41]} 35.a4 
{[%clk 00:01:02] [%emt 00:00:24]} 35...a5 {[%clk 00:17:03] [%emt 00:00:07]} 
36.Kg2 {[%clk 00:01:03] [%emt 00:00:30]} 36...Bc6 {[%clk 00:15:29] [%emt
00:02:04]} 37.Rf7 {[%clk 00:01:02] [%emt 00:00:31]} 37...Nd5 {[%clk 00:13:52]
[%emt 00:02:06]} 38.Ra7 {[%clk 00:00:33] [%emt 00:00:59]} 38...Ra8 {[%clk
00:12:38] [%emt 00:01:43]} 39.Rf7 {[%clk 00:00:58] [%emt 00:00:06]} 39...Re8 
{[%clk 00:11:50] [%emt 00:01:17]} 40.Kh3 {[%clk 00:00:31] [%emt 00:00:58]} 
40...Re5 {[%clk 00:08:21] [%emt 00:03:58]} 41.Ra7 {[%clk 00:47:02] [%emt
00:04:00]} 41...Nb4 {[%clk 00:54:07] [%emt 00:04:44]} 42.Kh4 {[%clk 00:44:05]
[%emt 00:03:28]} 42...Be8 {[%clk 00:53:21] [%emt 00:01:15]} 43.Rb7 {[%emt
00:08:17]} 43...Bg6 {[%clk 00:49:00]} 44.Rd7 {[%clk 00:35:32] [%emt 00:06:08]} 
44...Rc5 {[%clk 00:48:49] [%emt 00:00:40]} 45.Rd8+ {[%clk 00:33:49] [%emt
00:02:14]} 45...Kg7 {[%clk 00:49:11] [%emt 00:00:07]} 46.Rg8+ {[%clk 00:34:14]
[%emt 00:00:06]} 46...Kh6 {[%clk 00:49:35] [%emt 00:00:05]} 47.Rf8 {[%clk
00:34:42] [%emt 00:00:02]} 47...Nd3 {[%clk 00:49:43] [%emt 00:00:22]} 48.f4 
{[%clk 00:34:24] [%emt 00:00:48]} 48...Ne1 {[%clk 00:50:01] [%emt 00:00:12]} 0-1

[Event "FIDE Grand Swiss 2023"]
[Site "Villa Marina, Douglas, Isle of Man"]
[Date "2023.10.27"]
[Round "3.31"]
[White "Suleymanli, Aydin"]
[Black "Navara, David"]
[Result "1/2-1/2"]
[WhiteElo "2588"]
[BlackElo "2689"]
[EventDate "2023.10.25"]
[ECO "B51"]
[PlyCount "65"]
[BlackFideId "309095"]
[TimeControl "40/100 + 20/50 + 15 + 30s/move"]
[WhiteFideId "13413937"]

1.e4 {[%clk 01:40:57] [%emt 00:00:02]} 1...c5 {[%clk 01:40:56] [%emt 00:00:03]} 
2.Nf3 {[%clk 01:41:13] [%emt 00:00:14]} 2...d6 {[%clk 01:41:22] [%emt 00:00:05]} 
3.Bb5+ {[%clk 01:41:40] [%emt 00:00:03]} 3...Nd7 {[%clk 01:41:21] [%emt
00:00:31]} 4.O-O {[%clk 01:42:03] [%emt 00:00:07]} 4...a6 {[%clk 01:41:40] [%emt
00:00:12]} 5.Bd3 {[%clk 01:38:34] [%emt 00:03:59]} 5...Ngf6 {[%clk 01:41:47]
[%emt 00:00:22]} 6.Re1 {[%clk 01:38:51] [%emt 00:00:12]} 6...e6 {[%clk 01:41:50]
[%emt 00:00:27]} 7.Bf1 {[%clk 01:38:32] [%emt 00:00:49]} 7...b6 {[%clk 01:37:10]
[%emt 00:05:10]} 8.d4 {[%clk 01:38:10] [%emt 00:00:52]} 8...cxd4 {[%clk
01:37:31] [%emt 00:00:09]} 9.Nxd4 {[%clk 01:38:35] [%emt 00:00:06]} 9...Bb7 
{[%clk 01:37:22] [%emt 00:00:39]} 10.Nd2 {[%clk 01:38:51] [%emt 00:00:14]} 
10...Be7 {[%clk 01:35:35] [%emt 00:02:17]} 11.c4 {[%clk 01:38:25] [%emt
00:00:56]} 11...O-O {[%clk 01:35:08] [%emt 00:00:57]} 12.a3 {[%clk 01:35:50]
[%emt 00:03:05]} 12...Re8 {[%clk 01:33:24] [%emt 00:02:14]} 13.b4 {[%clk
01:35:15] [%emt 00:01:05]} 13...Qc7 {[%clk 01:31:19] [%emt 00:02:34]} 14.Bb2 
{[%clk 01:33:56] [%emt 00:01:49]} 14...Rac8 {[%clk 01:31:20] [%emt 00:00:29]} 
15.Rc1 {[%clk 01:32:40] [%emt 00:01:46]} 15...Qb8 {[%clk 01:29:45] [%emt
00:02:06]} 16.Qb3 {[%clk 01:25:23] [%emt 00:07:47]} 16...Bf8 {[%clk 01:26:25]
[%emt 00:03:49]} 17.N4f3 {[%clk 01:13:12] [%emt 00:12:42]} 17...Red8 {[%clk
01:19:40] [%emt 00:07:15]} 18.h3 {[%clk 01:10:12] [%emt 00:03:30]} 18...Qc7 
{[%clk 01:03:33] [%emt 00:16:37]} 19.Qe3 {[%clk 01:08:13] [%emt 00:02:28]} 
19...h6 {[%clk 00:53:40] [%emt 00:10:23]} 20.Bd4 {[%clk 00:53:09] [%emt
00:15:34]} 20...Ba8 {[%clk 00:48:22] [%emt 00:05:48]} 21.e5 {[%clk 00:41:26]
[%emt 00:12:13]} 21...dxe5 {[%clk 00:46:14] [%emt 00:02:39]} 22.Nxe5 {[%clk
00:41:17] [%emt 00:00:39]} 22...Nxe5 {[%clk 00:43:34] [%emt 00:03:10]} 23.Bxe5 
{[%clk 00:41:37] [%emt 00:00:10]} 23...Qb7 {[%clk 00:40:10] [%emt 00:03:54]} 
24.Nb3 {[%clk 00:22:23] [%emt 00:19:44]} 24...a5 {[%clk 00:36:32] [%emt
00:04:08]} 25.bxa5 {[%clk 00:20:34] [%emt 00:02:18]} 25...bxa5 {[%clk 00:36:50]
[%emt 00:00:13]} 26.Nxa5 {[%clk 00:19:33] [%emt 00:01:31]} 26...Qa6 {[%clk
00:37:00] [%emt 00:00:19]} 27.Nb3 {[%clk 00:17:36] [%emt 00:02:27]} 27...Qxa3 
{[%clk 00:35:25] [%emt 00:02:05]} 28.Ra1 {[%clk 00:16:01] [%emt 00:02:06]} 
28...Qe7 {[%clk 00:33:25] [%emt 00:02:30]} 29.Ra7 {[%clk 00:15:10] [%emt
00:01:22]} 29...Rd7 {[%clk 00:33:08] [%emt 00:00:46]} 30.Rea1 {[%clk 00:14:50]
[%emt 00:00:50]} 30...Rxa7 {[%clk 00:32:56] [%emt 00:00:42]} 31.Rxa7 {[%clk
00:15:14] [%emt 00:00:05]} 31...Qd8 {[%clk 00:32:59] [%emt 00:00:28]} 32.Ra2 
{[%clk 00:07:54] [%emt 00:07:51]} 32...Nd7 {[%clk 00:21:49] [%emt 00:11:39]} 
33.Rd2 {[%clk 00:07:57] [%emt 00:00:27]} 1/2-1/2

[Event "FIDE Grand Swiss 2023"]
[Site "Villa Marina, Douglas, Isle of Man"]
[Date "2023.10.27"]
[Round "3.32"]
[White "Amin, Bassem"]
[Black "Nguyen, Thai Dai Van"]
[Result "1/2-1/2"]
[WhiteElo "2680"]
[BlackElo "2618"]
[EventDate "2023.10.25"]
[ECO "A14"]
[PlyCount "47"]
[BlackFideId "358878"]
[TimeControl "40/100 + 20/50 + 15 + 30s/move"]
[WhiteFideId "10601457"]

1.Nf3 {[%clk 01:40:17] [%emt 00:00:41]} 1...d5 {[%clk 01:40:43] [%emt 00:00:18]} 
2.g3 {[%clk 01:40:39] [%emt 00:00:08]} 2...Nf6 {[%clk 01:41:05] [%emt 00:00:07]} 
3.Bg2 {[%clk 01:41:02] [%emt 00:00:07]} 3...e6 {[%clk 01:41:30] [%emt 00:00:06]} 
4.O-O {[%clk 01:41:22] [%emt 00:00:11]} 4...Be7 {[%clk 01:41:56] [%emt
00:00:03]} 5.c4 {[%clk 01:40:59] [%emt 00:00:53]} 5...O-O {[%clk 01:42:12] [%emt
00:00:12]} 6.b3 {[%clk 01:41:01] [%emt 00:00:31]} 6...b6 {[%clk 01:42:31] [%emt
00:00:11]} 7.cxd5 {[%clk 01:40:48] [%emt 00:00:43]} 7...Nxd5 {[%clk 01:42:46]
[%emt 00:00:14]} 8.d4 {[%clk 01:36:38] [%emt 00:04:39]} 8...Bb7 {[%clk 01:43:09]
[%emt 00:00:08]} 9.Bb2 {[%clk 01:36:57] [%emt 00:00:12]} 9...Nd7 {[%clk
01:43:06] [%emt 00:00:32]} 10.Nbd2 {[%clk 01:28:00] [%emt 00:09:27]} 10...c5 
{[%clk 01:42:58] [%emt 00:00:38]} 11.a3 {[%clk 01:28:09] [%emt 00:00:21]} 
11...a5 {[%clk 01:22:19] [%emt 00:21:08]} 12.Rc1 {[%clk 01:21:48] [%emt
00:06:52]} 12...Rc8 {[%clk 01:20:42] [%emt 00:02:08]} 13.h4 {[%clk 01:10:43]
[%emt 00:11:35]} 13...N5f6 {[%clk 01:07:42] [%emt 00:13:29]} 14.a4 {[%clk
01:04:04] [%emt 00:07:09]} 14...cxd4 {[%clk 01:06:23] [%emt 00:01:49]} 15.Bxd4 
{[%clk 01:02:13] [%emt 00:02:21]} 15...Rxc1 {[%clk 01:05:50] [%emt 00:01:02]} 
16.Qxc1 {[%clk 01:02:41] [%emt 00:00:03]} 16...Bc5 {[%clk 01:04:39] [%emt
00:01:40]} 17.Rd1 {[%clk 00:54:40] [%emt 00:08:32]} 17...Qb8 {[%clk 01:01:34]
[%emt 00:03:34]} 18.Nc4 {[%clk 00:52:33] [%emt 00:02:37]} 18...Bd5 {[%clk
00:58:45] [%emt 00:03:20]} 19.Qb2 {[%clk 00:43:54] [%emt 00:09:09]} 19...Rc8 
{[%clk 00:44:13] [%emt 00:15:01]} 20.Ne3 {[%clk 00:42:47] [%emt 00:01:38]} 
20...Be4 {[%clk 00:39:50] [%emt 00:04:52]} 21.Nc4 {[%clk 00:41:31] [%emt
00:01:46]} 21...Bd5 {[%clk 00:40:00] [%emt 00:00:20]} 22.Ne3 {[%clk 00:41:29]
[%emt 00:00:32]} 22...Be4 {[%clk 00:40:23] [%emt 00:00:08]} 23.Nc4 {[%clk
00:41:55] [%emt 00:00:04]} 23...Bd5 {[%clk 00:40:48] [%emt 00:00:05]} 24.Ne3 
{[%emt 00:00:48]} 1/2-1/2

[Event "FIDE Grand Swiss 2023"]
[Site "Villa Marina, Douglas, Isle of Man"]
[Date "2023.10.27"]
[Round "3.33"]
[White "Shevchenko, Kirill"]
[Black "Jumabayev, Rinat"]
[Result "0-1"]
[WhiteElo "2671"]
[BlackElo "2585"]
[EventDate "2023.10.25"]
[ECO "A35"]
[PlyCount "51"]
[BlackFideId "13702661"]
[TimeControl "40/100 + 20/50 + 15 + 30s/move"]
[WhiteFideId "14129574"]

1.c4 {[%clk 01:40:56] [%emt 00:00:03]} 1...c5 {[%clk 01:40:44] [%emt 00:00:17]} 
2.Nf3 {[%clk 01:41:13] [%emt 00:00:13]} 2...Nf6 {[%clk 01:40:05] [%emt
00:01:08]} 3.Nc3 {[%clk 01:40:53] [%emt 00:00:51]} 3...Nc6 {[%clk 01:40:12]
[%emt 00:00:23]} 4.g3 {[%clk 01:35:29] [%emt 00:05:54]} 4...d5 {[%clk 01:40:12]
[%emt 00:00:30]} 5.cxd5 {[%clk 01:34:39] [%emt 00:01:20]} 5...Nxd5 {[%clk
01:40:37] [%emt 00:00:04]} 6.Bg2 {[%clk 01:35:04] [%emt 00:00:05]} 6...g6 
{[%clk 01:40:56] [%emt 00:00:11]} 7.h4 {[%clk 01:34:54] [%emt 00:00:40]} 7...h6 
{[%clk 01:31:35] [%emt 00:09:51]} 8.d3 {[%clk 01:24:49] [%emt 00:10:35]} 
8...Nxc3 {[%clk 01:28:59] [%emt 00:03:07]} 9.bxc3 {[%clk 01:25:13] [%emt
00:00:05]} 9...Bg7 {[%clk 01:29:18] [%emt 00:00:12]} 10.O-O {[%clk 01:02:59]
[%emt 00:22:44]} 10...Be6 {[%clk 01:23:06] [%emt 00:06:41]} 11.Be3 {[%clk
00:50:14] [%emt 00:13:15]} 11...Rc8 {[%clk 01:19:01] [%emt 00:04:35]} 12.Bxc5 
{[%clk 00:41:37] [%emt 00:09:07]} 12...Bxc3 {[%clk 01:19:11] [%emt 00:00:21]} 
13.Rc1 {[%clk 00:41:27] [%emt 00:00:40]} 13...Bg7 {[%clk 01:15:07] [%emt
00:04:33]} 14.Qa4 {[%clk 00:33:47] [%emt 00:08:09]} 14...O-O {[%clk 01:15:14]
[%emt 00:00:25]} 15.Rc2 {[%clk 00:32:42] [%emt 00:01:35]} 15...Qd7 {[%clk
00:54:53] [%emt 00:20:51]} 16.Rfc1 {[%emt 00:01:46]} 16...Rfd8 {[%clk 00:54:49]} 
17.Kh2 {[%clk 00:25:04] [%emt 00:07:24]} 17...Bg4 {[%clk 00:43:43] [%emt
00:11:36]} 18.Be3 {[%clk 00:21:33] [%emt 00:04:02]} 18...e5 {[%clk 00:35:53]
[%emt 00:08:20]} 19.Qb5 {[%clk 00:14:07] [%emt 00:07:54]} 19...Qe7 {[%clk
00:31:11] [%emt 00:05:13]} 20.Qa4 {[%clk 00:08:28] [%emt 00:06:09]} 20...Bd7 
{[%clk 00:28:54] [%emt 00:02:47]} 21.Rc5 {[%clk 00:06:21] [%emt 00:02:38]} 
21...Kh8 {[%clk 00:21:30] [%emt 00:07:54]} 22.Qb3 {[%clk 00:01:07] [%emt
00:05:44]} 22...Be6 {[%clk 00:17:57] [%emt 00:04:03]} 23.Qb1 {[%clk 00:01:06]
[%emt 00:00:30]} 23...f5 {[%clk 00:17:32] [%emt 00:00:56]} 24.Rb5 {[%clk
00:01:21] [%emt 00:00:15]} 24...Rc7 {[%clk 00:16:51] [%emt 00:01:11]} 25.h5 
{[%clk 00:00:43] [%emt 00:01:08]} 25...g5 {[%clk 00:16:42] [%emt 00:00:39]} 
26.Rxc6 {[%clk 00:50:00] [%emt 00:00:09]} 0-1